lending/lending_fUSD_20240810
["ID","MTS","AMOUNT","RATE_DAILY","PERIOD"]
[334601392,1723314101737,10000.0,9.71e-05,2]
[334601393,1723314156956,2621.01812138,0.00025,60]
[334601394,1723314196096,154.19,9.706e-05,2]
[334601395,1723314317229,150.0,9.888e-05,2]
[334601400,1723314413541,234.8,8.219e-05,2]
[334601471,1723314573603,840.0,9.741e-05,2]
[334601484,1723314632838,-300.0,9.998e-05,2]
[334601485,1723314632848,-300.0,9.998e-05,2]
[334601486,1723314632858,-3463.63096657,9.999e-05,2]
[334601487,1723314632867,-150.0,9.999e-05,2]
[334601488,1723314632876,-550.0,0.0001,2]
[334601489,1723314632887,-500.0,0.0001,2]
[334601490,1723314632899,-500.0,0.0001,2]
[334601491,1723314632909,-500.0,0.0001,2]
[334601492,1723314632918,-500.0,0.0001,2]
[334601493,1723314632928,-500.0,0.0001,2]
[334601494,1723314632939,-500.0,0.0001,2]
[334601495,1723314632948,-500.0,0.0001,2]
[334601496,1723314632958,-500.0,0.0001,2]
[334601497,1723314632968,-500.0,0.0001,2]
[334601498,1723314632979,-500.0,0.0001,2]
[334601499,1723314632988,-500.0,0.0001,2]
[334601500,1723314632998,-500.0,0.0001,2]
[334601501,1723314633007,-500.0,0.0001,2]
[334601502,1723314633016,-243.08839662,0.0001,2]
[334601503,1723314633028,-256.91160338,0.0001,2]
[334601505,1723314633264,-500.0,0.0001,2]
[334601506,1723314633275,-500.0,0.0001,2]
[334601507,1723314633285,-500.0,0.0001,2]
[334601508,1723314633295,-500.0,0.0001,2]
[334601509,1723314633304,-500.0,0.0001,2]
[334601510,1723314633314,-500.0,0.0001,2]
[334601511,1723314633324,-500.0,0.0001,2]
[334601512,1723314633333,-500.0,0.0001,2]
[334601513,1723314633343,-500.0,0.0001,2]
[334601514,1723314633352,-500.0,0.0001,2]
[334601515,1723314633362,-500.0,0.0001,2]
[334601516,1723314633371,-500.0,0.0001,2]
[334601517,1723314633384,-500.0,0.0001,2]
[334601518,1723314633393,-500.0,0.0001,2]
[334601519,1723314633402,-500.0,0.0001,2]
[334601520,1723314633412,-374.50357492,0.0001,2]
[334601521,1723314633429,-125.49642508,0.0001,2]
[334601522,1723314633438,-217.8698408,0.0001,2]
[334601523,1723314633450,-282.1301592,0.0001,2]
[334601524,1723314633460,-500.0,0.0001,2]
[334601525,1723314633469,-101.4197908,0.0001,2]
[334601526,1723314633481,-398.5802092,0.0001,2]
[334601527,1723314633490,-447.8897908,0.0001,2]
[334601528,1723314633502,-52.1102092,0.0001,2]
[334601529,1723314633511,-298.1197907,0.0001,2]
[334601530,1723314633522,-201.8802093,0.0001,2]
[334601531,1723314633531,-500.0,0.0001,2]
[334601532,1723314633541,-435.51361463,0.0001,2]
[334601533,1723314633552,-64.48638537,0.0001,2]
[334601534,1723314633562,-466.68637645,0.0001,2]
[334601535,1723314633574,-33.31362355,0.0001,2]
[334601536,1723314633583,-500.0,0.0001,2]
[334601537,1723314633593,-10.82830852,0.0001,2]
[334601538,1723314633604,-383.94169148,0.0001,2]
[334601539,1723314633614,-500.0,0.0001,2]
[334601540,1723314633626,-575.65,0.0001,2]
[334601541,1723314633641,-500.0,0.0001,2]
[334601542,1723314633651,-500.0,0.0001,2]
[334601543,1723314633661,-500.0,0.0001,2]
[334601544,1723314633671,-500.0,0.0001,2]
[334601545,1723314633680,-500.0,0.0001,2]
[334601546,1723314633690,-151.96,0.00010303,2]
[334601547,1723314633700,-151.96,0.00010307,2]
[334601548,1723314633709,-151.96,0.00010311,2]
[334601549,1723314633719,-151.96,0.00010315,2]
[334601550,1723314633728,-151.96,0.00010319,2]
[334601551,1723314633738,-151.96,0.00010323,2]
[334601552,1723314633748,-151.96,0.00010327,2]
[334601553,1723314633757,-470.78653371,0.00010327,2]
[334601554,1723314633769,-321.91346629,0.00010327,2]
[334601555,1723314633780,-151.96,0.00010331,2]
[334601556,1723314633790,-5034.04,0.00010331,2]
[334601557,1723314633799,-499.99,0.00010331,2]
[334601558,1723314633810,-150.99,0.00010331,2]
[334601559,1723314633819,-364.02,0.00010331,2]
[334601560,1723314633829,-151.96,0.00010335,2]
[334601561,1723314633838,-151.96,0.00010339,2]
[334601562,1723314633847,-151.96,0.00010343,2]
[334601563,1723314633857,-151.96,0.00010346,2]
[334601564,1723314633867,-151.96,0.0001035,2]
[334601565,1723314633878,-151.96,0.00010354,2]
[334601566,1723314633890,-1265.53362362,0.0001044,2]
[334601567,1723314633900,-234.8,0.00010463,2]
[334601568,1723314633909,-3000.22530648,0.00010567,2]
[334601570,1723314638009,-1318.77469352,0.00010567,2]
[334601571,1723314638019,-150.0,0.000107,2]
[334601572,1723314638031,-356.46,0.000107,2]
[334601573,1723314638042,-150.0,0.000107,2]
[334601574,1723314638053,-150.0,0.000107,2]
[334601575,1723314638064,-1860.7009197,0.0001089,2]
[334601576,1723314638074,-150.8736,0.0001089,2]
[334601577,1723314638084,-1063.19078678,0.0001089,2]
[334601578,1723314638097,-307.16362322,0.0001089,2]
[334601579,1723314638107,-604.09667438,0.000109,2]
[334601580,1723314638157,-996.23994005,0.000109,2]
[334601581,1723314638168,-420.0,0.000109,2]
[334601582,1723314638358,-618.75914436,0.000109,2]
[334601639,1723314644206,-36500.08664121,0.000109,2]
[334601640,1723314644216,-6783.7703,0.000109,2]
[334601641,1723314644228,-4794.7927,0.000109,2]
[334601642,1723314644240,-9439.4994,0.000109,2]
[334601643,1723314644250,-500.0,0.000109,2]
[334601644,1723314644261,-1727.7352,0.000109,2]
[334601645,1723314644272,-150.0,0.000109,2]
[334601646,1723314644282,-280.851,0.000109,2]
[334601647,1723314644292,-4099.9675,0.000109,2]
[334601648,1723314644302,-382.35185922,0.000109,2]
[334601649,1723314644312,-1006.0,0.000109,2]
[334601650,1723314644322,-193.64669932,0.000109,2]
[334601651,1723314644333,-8615.75044667,0.000109,2]
[334601652,1723314644344,-200.49066868,0.000109,2]
[334601653,1723314644357,-200.0,0.00010902,2]
[334601654,1723314644367,-154.19,0.0001092,2]
[334601655,1723314644378,-840.0,0.00010958,2]
[334601656,1723314644389,-1500.0,0.00010959,5]
[334601657,1723314644400,-220.18,0.0001097,2]
[334601658,1723314644411,-200.0,0.00010973,2]
[334601659,1723314644421,-200.0,0.00010973,2]
[334601660,1723314644431,-3289.0,0.00010989,2]
[334601661,1723314644441,-1154.0,0.00010989,2]
[334601662,1723314644452,-1925.0,0.00010989,2]
[334601663,1723314644463,-685.929,0.00010989,2]
[334601664,1723314644473,-810.0,0.00010989,2]
[334601665,1723314644483,-736.0,0.00010989,2]
[334601666,1723314644495,-150.0,0.00010989,2]
[334601667,1723314644505,-1278.7248259,0.00010997,2]
[334601668,1723314644515,-6428.9189832,0.00010997,2]
[334601669,1723314644526,-305.2048762,0.00010997,2]
[334601670,1723314644537,-270.84000018,0.00010997,2]
[334601671,1723314644547,-420.0,0.00010998,2]
[334601672,1723314644558,-420.0,0.00010998,2]
[334601673,1723314644568,-255.0,0.00010999,2]
[334601674,1723314644579,-3225.80181363,0.00011,2]
[334601690,1723314972279,226.6,8.854e-05,2]
[334601694,1723315030929,20000.0,0.00027,120]
[334601697,1723315133445,3915.0,0.00027,120]
[334601702,1723315232251,5000.0,0.00027,120]
[334601703,1723315267843,5000.34626906,0.00027,120]
[334601705,1723315377856,5000.0,0.00027,120]
[334601706,1723315450657,-165.14,0.00010485,2]
[334601707,1723315450680,-496.0,0.00010626,2]
[334601708,1723315450705,-1952.7453,0.000108,2]
[334601709,1723315450731,-1141.96201,0.0001089,2]
[334601710,1723315450755,-150.0,0.00010899,2]
[334601711,1723315450777,-406.1783,0.000109,2]
[334601712,1723315450801,-1000.0,0.000109,2]
[334601713,1723315450822,-1000.0,0.000109,2]
[334601714,1723315450844,-7754.17540194,0.000109,2]
[334601715,1723315450869,-356.8617353,0.000109,2]
[334601716,1723315450892,-1500.0,0.00010959,5]
[334601717,1723315450916,-250.0,0.00010959,2]
[334601718,1723315450939,-550.0,0.00010979,2]
[334601719,1723315450961,-1894.0,0.00010989,2]
[334601720,1723315450984,-499.99,0.00010989,2]
[334601721,1723315451009,-882.94725276,0.00010989,2]
[334601722,1723315451973,-9654.34274724,0.00010989,2]
[334601723,1723315451997,-511.62,0.00010989,2]
[334601724,1723315452019,-539.48154861,0.00010996,2]
[334601725,1723315452042,-9294.55570415,0.00010997,2]
[334601726,1723315456832,-2110.68441285,0.00010997,2]
[334601727,1723315456855,-325.7426838,0.00010997,2]
[334601728,1723315456877,-2411.6661785,0.00010997,2]
[334601729,1723315456900,-15136.90672485,0.00010997,2]
[334601730,1723315477407,215.27,9.171e-05,2]
[334601731,1723315642373,550.0,0.0001,2]
[334601779,1723315832003,-156.93,0.00010608,2]
[334601781,1723315832013,-1720.19,0.00010747,2]
[334601783,1723315832022,-603.2,0.00010762,2]
[334601785,1723315832032,-300.0,0.00010898,2]
[334601786,1723315832042,-8400.7679698,0.00010899,2]
[334601787,1723315832052,-150.0,0.00010899,2]
[334601788,1723315832062,-3059.9220302,0.000109,2]
[334601799,1723315832808,-2924.75899236,0.000109,2]
[334601803,1723315839886,-7249.87427744,0.000109,2]
[334601804,1723315839897,-833.2259,0.000109,2]
[334601805,1723315839908,-6978.7578618,0.000109,2]
[334601806,1723315839917,-355.58275432,0.000109,2]
[334601807,1723315839927,-1907.45909756,0.000109,2]
[334601808,1723315839936,-333.07095304,0.000109,2]
[334601809,1723315839946,-772.48049732,0.000109,2]
[334601810,1723315839956,-454.17,0.00010959,2]
[334601811,1723315839966,-444.16773908,0.00010997,2]
[334601812,1723315839975,-8222.7893956,0.00010997,2]
[334601813,1723315839985,-271.4522365,0.00010997,2]
[334601814,1723315839994,-1731.2251386,0.00010997,2]
[334601815,1723315840004,-13856.73681564,0.00010997,2]
[334601817,1723315840013,-73634.79748161,0.00011,2]
[334601819,1723315840023,-839702.86997166,0.00011,2]
[334601830,1723315840268,-1033.7674552,0.00011,2]
[334601831,1723315840378,-52314.45260923,0.00011,2]
[334601856,1723315846392,-430245.44461338,0.00011,2]
[334601857,1723315846476,-35280.000002,0.00011,2]
[334601890,1723315946142,268.44,9.042e-05,2]
[334601895,1723316018425,208.68137913,9.042e-05,2]
[334601899,1723316076074,500.0,0.0001,2]
[334601900,1723316076947,500.0,0.0001,2]
[334601901,1723316077732,500.0,0.0001,2]
[334601903,1723316078519,500.0,0.0001,2]
[334601904,1723316079259,500.0,0.0001,2]
[334601905,1723316080013,500.0,0.0001,2]
[334601906,1723316081869,500.0,0.0001,2]
[334601907,1723316082760,500.0,0.0001,2]
[334601908,1723316083506,500.0,0.0001,2]
[334601909,1723316084262,500.0,0.0001,2]
[334601910,1723316085018,500.0,0.0001,2]
[334601911,1723316085773,500.0,0.0001,2]
[334601912,1723316086560,500.0,0.0001,2]
[334601913,1723316087415,500.0,0.0001,2]
[334601914,1723316088071,500.0,0.0001,2]
[334601915,1723316089346,411.76,0.0001,2]
[334601921,1723316141869,500.0,0.0001,2]
[334601922,1723316142618,500.0,0.0001,2]
[334601923,1723316143374,500.0,0.0001,2]
[334601924,1723316144137,283.63,0.0001,2]
[334601925,1723316154863,500.0,0.0001,2]
[334601929,1723316220801,500.0,0.0001,2]
[334601932,1723316285844,500.0,0.0001,2]
[334601934,1723316442867,255.01,8.427e-05,2]
[334601935,1723316471907,-1004.23735907,0.00010422,2]
[334601936,1723316471931,-517.44,0.00010513,2]
[334601937,1723316471953,-250.0,0.00010523,2]
[334601938,1723316471977,-255.01,0.00010691,2]
[334601939,1723316472002,-150.0,0.00010765,2]
[334601940,1723316472025,-166.24,0.00010772,2]
[334601941,1723316472049,-951.63501,0.0001089,2]
[334601942,1723316472075,-150.0,0.00010899,2]
[334601943,1723316472098,-300.0,0.00010899,2]
[334601944,1723316472122,-2681.9773,0.000109,2]
[334601945,1723316472147,-22352.5827,0.000109,2]
[334601946,1723316472172,-785.6009,0.000109,2]
[334601947,1723316472197,-9191.9767,0.000109,2]
[334601948,1723316472219,-500.0,0.000109,2]
[334601949,1723316472244,-1876.7215,0.000109,2]
[334601950,1723316472266,-1525.6402,0.000109,2]
[334601951,1723316472290,-6280.88207562,0.000109,2]
[334601952,1723316472313,-675.92043519,0.000109,2]
[334601953,1723316472339,-1123.0237,0.000109,2]
[334601954,1723316472365,-237.05516956,0.000109,2]
[334601955,1723316472389,-1271.63939838,0.000109,2]
[334601956,1723316472414,-1500.0,0.00010959,5]
[334601957,1723316472443,-591.34,0.00010959,2]
[334601958,1723316472472,-945.6838493,0.00010997,2]
[334601959,1723316472498,-4440.3528376,0.00010997,2]
[334601960,1723316472522,-279.7767717,0.00010997,2]
[334601961,1723316472548,-14995.26409358,0.00011,2]
[334601962,1723316517553,-738.2222706,0.00010997,2]
[334601963,1723316517580,-21822.13464722,0.00011,2]
[334601964,1723316517607,-77439.64308218,0.00011,2]
[334601980,1723316903042,229.5,8.801e-05,2]
[334601981,1723317032187,-479.16,0.00010612,2]
[334601982,1723317032198,-106.88,0.00010612,2]
[334601983,1723317032208,-165.15,0.00010739,2]
[334601984,1723317032217,-231.8913516,0.0001078,2]
[334601990,1723317038269,-895.53607117,0.0001078,2]
[334601991,1723317038279,-1124.42375031,0.0001078,2]
[334601992,1723317038288,-150.0,0.00010899,2]
[334601993,1723317038297,-4004.61,0.00010899,2]
[334601994,1723317038306,-437.68176414,0.000109,2]
[334601995,1723317038449,-5215.1121039,0.000109,2]
[334601996,1723317038458,-765.7664,0.000109,2]
[334601997,1723317038467,-591.43038073,0.000109,2]
[334601998,1723317038476,-158.0367797,0.000109,2]
[334601999,1723317038485,-847.75959892,0.000109,2]
[334602000,1723317038494,-4510.94063234,0.00010997,2]
[334602001,1723317038515,-289.25828446,0.00010997,2]
[334602002,1723317038524,-473.8438335,0.00010997,2]
[334602003,1723317038534,-179.5807351,0.00010997,2]
[334602004,1723317038543,-18408.6993704,0.00011,2]
[334602005,1723317038552,-562264.67114579,0.00011,2]
[334602006,1723317038568,-64084.72565715,0.00011,2]
[334602014,1723317040293,-1130.54686907,0.00011,2]
[334602015,1723317040307,-12166.95600629,0.00011,2]
[334602016,1723317040318,-2048.42034092,0.00011,2]
[334602017,1723317040385,-1347.10578871,0.00011,2]
[334602018,1723317040396,-1243.68746334,0.00011,2]
[334602019,1723317040453,-500.0,0.00011,2]
[334602020,1723317040523,-792.58700635,0.00011,2]
[334602026,1723317040696,-1370.0599031,0.00011,2]
[334602027,1723317041753,-1342.36687518,0.00011,2]
[334602029,1723317041765,-1596.3,0.00011,2]
[334602030,1723317041776,-1289.45153415,0.00011,2]
[334602034,1723317043381,-6679.72932,0.00011,2]
[334602035,1723317043393,-1661.60734328,0.00011,2]
[334602036,1723317043404,-657.15745888,0.00011,2]
[334602037,1723317043415,-1516.6,0.00011,2]
[334602038,1723317043426,-1000.0,0.00011,2]
[334602039,1723317043438,-7764.0017081,0.00011,2]
[334602048,1723317044780,-38710.46975587,0.00011,2]
[334602049,1723317044792,-893.69633837,0.00011,2]
[334602050,1723317044805,-661.3131406,0.00011,2]
[334602051,1723317044824,-151127.05861855,0.00011,2]
[334602052,1723317044837,-15276.2702841,0.00011,2]
[334602053,1723317044868,-526.51722038,0.00011,2]
[334602075,1723317046275,-10401.00682633,0.00011,2]
[334602085,1723317046342,-602.97103011,0.00011,2]
[334602087,1723317046353,-659.63226987,0.00011,2]
[334602093,1723317046409,-1529.47956354,0.00011,2]
[334602094,1723317046420,-1860.25869673,0.00011,2]
[334602102,1723317046611,-1417.56443875,0.00011,2]
[334602104,1723317046895,-99025.52960674,0.00011,2]
[334602105,1723317046906,-4417.52516995,0.00011,2]
[334602106,1723317046917,-396.35,0.00011,2]
[334602107,1723317371669,293.81,8.496e-05,2]
[334602108,1723317440109,155.0,8.496e-05,2]
[334602109,1723317444213,485.60630926,8.496e-05,2]
[334602110,1723317445535,692.80235,8.496e-05,2]
[334602111,1723317445611,196.71089893,8.496e-05,2]
[334602112,1723317447098,155.0,8.496e-05,2]
[334602113,1723317448188,871.98206993,8.496e-05,2]
[334602114,1723317449993,1309.79366313,8.496e-05,2]
[334602115,1723317450479,227.7293364,8.496e-05,2]
[334602116,1723317450697,200.0,8.496e-05,2]
[334602117,1723317451000,291.42187984,8.496e-05,2]
[334602118,1723317452201,2331.39853397,8.496e-05,2]
[334602119,1723317452734,20386.76664301,8.496e-05,2]
[334602120,1723317452773,39253.0869364,8.496e-05,2]
[334602121,1723317452799,1313.34290752,8.496e-05,2]
[334602122,1723317452822,20000.0,8.496e-05,2]
[334602123,1723317452844,20000.0,8.496e-05,2]
[334602124,1723317452867,20000.0,8.496e-05,2]
[334602125,1723317452896,20000.0,8.496e-05,2]
[334602126,1723317452925,58927.4524004,8.496e-05,2]
[334602127,1723317452964,1284.55129819,8.496e-05,2]
[334602128,1723317453827,7573.35383779,8.496e-05,2]
[334602129,1723317453926,1223.05007541,8.496e-05,2]
[334602130,1723317454704,363.80792903,8.496e-05,2]
[334602131,1723317457822,150.0,8.496e-05,2]
[334602132,1723317457849,150.0,8.496e-05,2]
[334602133,1723317457869,150.0,8.496e-05,2]
[334602134,1723317457891,150.0,8.496e-05,2]
[334602135,1723317457912,150.0,8.496e-05,2]
[334602136,1723317457932,150.0,8.496e-05,2]
[334602137,1723317457953,150.0,8.496e-05,2]
[334602138,1723317457974,150.0,8.496e-05,2]
[334602139,1723317457994,67.96294288,8.496e-05,2]
[334602140,1723317459757,82.03705712,8.496e-05,2]
[334602141,1723317459777,150.0,8.496e-05,2]
[334602142,1723317459797,29.97326229,8.496e-05,2]
[334602143,1723317460172,120.02673771,8.496e-05,2]
[334602144,1723317460193,38.89565712,8.496e-05,2]
[334602145,1723317462961,575.65743734,8.496e-05,2]
[334602146,1723317549527,150.0,8.496e-05,2]
[334602147,1723317549549,77.7293364,8.496e-05,2]
[334602148,1723317557157,439.2410877,8.496e-05,2]
[334602149,1723317637491,208.16899674,8.496e-05,2]
[334602152,1723317981304,331.68,8.232e-05,2]
[334602193,1723318232465,-325.89,0.0001,2]
[334602205,1723318238692,-224.11,0.0001,2]
[334602206,1723318238703,-231.57,0.00010148,2]
[334602207,1723318238714,-250.0,0.00010166,2]
[334602208,1723318238724,-266.71101291,0.00010297,2]
[334602211,1723318240592,-33.28898709,0.00010297,2]
[334602212,1723318240601,-211.62746688,0.00010298,2]
[334602213,1723318240610,-4794.79266657,0.00010298,2]
[334602214,1723318240619,-948.5265983,0.00010298,2]
[334602215,1723318240628,-158.98,0.00010329,2]
[334602216,1723318240639,-331.68,0.00010496,2]
[334602217,1723318240648,-1000.0,0.00010569,2]
[334602218,1723318240657,-426.27,0.000106,2]
[334602219,1723318240666,-555.69,0.000106,2]
[334602220,1723318240675,-426.27,0.000106,2]
[334602221,1723318240684,-426.27,0.000106,2]
[334602222,1723318240693,-996.74422911,0.0001078,2]
[334602223,1723318240701,-499.99,0.0001078,2]
[334602224,1723318240710,-514.39,0.000108,2]
[334602225,1723318240720,-150.0,0.000108,2]
[334602226,1723318240729,-530.62,0.000108,2]
[334602227,1723318240738,-389.48,0.000108,2]
[334602228,1723318240747,-834.66,0.000108,2]
[334602229,1723318240757,-150.0,0.00010899,2]
[334602230,1723318240766,-3360.0806,0.000109,2]
[334602231,1723318240775,-1029.037763,0.000109,2]
[334602232,1723318240785,-167.73613217,0.000109,2]
[334602233,1723318240794,-1904.5178,0.000109,2]
[334602234,1723318240804,-7378.0777,0.000109,2]
[334602235,1723318240813,-788.7556,0.000109,2]
[334602236,1723318240822,-1289.7013,0.000109,2]
[334602237,1723318240832,-93635.052,0.000109,2]
[334602238,1723318240843,-30650.319,0.000109,2]
[334602239,1723318240853,-7500.0,0.000109,2]
[334602240,1723318240863,-179.62485198,0.000109,2]
[334602241,1723318240875,-153.68776239,0.000109,2]
[334602242,1723318240887,-1000.0,0.0001092,2]
[334602243,1723318240896,-200.0,0.00010973,2]
[334602244,1723318240907,-200.0,0.00010973,2]
[334602245,1723318240917,-150.0,0.00010989,2]
[334602246,1723318240926,-1139.0,0.00010989,2]
[334602247,1723318240936,-1554.952,0.00010989,2]
[334602248,1723318240947,-150.0,0.00010989,2]
[334602249,1723318240957,-1075.0,0.00010989,2]
[334602250,1723318240968,-1256.0,0.00010989,2]
[334602251,1723318240978,-5131.0,0.00010989,2]
[334602253,1723318240993,-622.0,0.00010989,2]
[334602255,1723318241004,-21745.0,0.00010989,2]
[334602257,1723318241014,-1583.0,0.00010989,2]
[334602259,1723318241024,-592.103,0.00010989,2]
[334602261,1723318241036,-1671.0,0.00010989,2]
[334602263,1723318241046,-406.977461,0.00010997,2]
[334602265,1723318241056,-2216.1512617,0.00010997,2]
[334602266,1723318241069,-718.3229408,0.00010997,2]
[334602267,1723318241079,-179.5807351,0.00010997,2]
[334602268,1723318241092,-3461.3935124,0.00010997,2]
[334602269,1723318241102,-3681.73251308,0.00010997,2]
[334602270,1723318241112,-2727.13378422,0.00010999,2]
[334602271,1723318241123,-1969.0348807,0.00010999,2]
[334602272,1723318241135,-67694.92000864,0.00011,2]
[334602273,1723318241150,-319553.86620005,0.00011,2]
[334602275,1723318241813,-1304.18505704,0.00011,2]
[334602277,1723318241826,-5782.29098957,0.00011,2]
[334602280,1723318243503,-521.31163644,0.00010989,2]
[334602281,1723318243565,-508.23605621,0.00010989,2]
[334602282,1723318243576,-174.45230735,0.00010989,2]
[334602283,1723318243586,-2760.32740303,0.00011,2]
[334602284,1723318243597,-675.025,0.00011,2]
[334602285,1723318244906,-2165.68177957,0.00011,2]
[334602286,1723318244920,-754.9399989,0.00011,2]
[334602287,1723318244933,-305.67881732,0.00011,2]
[334602288,1723318244946,-697.23822464,0.00011,2]
[334602289,1723318244981,-1082.91734936,0.00011,2]
[334602290,1723318244997,-3265.01060924,0.00011,2]
[334602291,1723318245008,-564.272112,0.00011,2]
[334602292,1723318245020,-10992.66936184,0.00011,2]
[334602311,1723318246786,-310.75725806,0.0001092,2]
[334602312,1723318246798,-532.39374194,0.0001092,2]
[334602313,1723318246807,-375.10625806,0.00011,2]
[334602314,1723318246818,-2427.55502287,0.00011,2]
[334602315,1723318246839,-446.0,0.0001092,2]
[334602316,1723318246849,-560.8,0.00011,2]
[334602318,1723318443325,328.15,8.683e-05,2]
[334602319,1723318483794,481.94871116,8.683e-05,2]
[334602320,1723318486555,150.0,8.683e-05,2]
[334602321,1723318486576,77.7293364,8.683e-05,2]
[334602322,1723318496115,693.0340361,8.683e-05,2]
[334602323,1723318496859,1112.36271888,8.683e-05,2]
[334602324,1723318498008,1284.76036266,8.683e-05,2]
[334602325,1723318502835,153716.20680418,8.683e-05,2]
[334602330,1723318941756,319.25,8.412e-05,2]
[334602334,1723319430798,303.28,8.219e-05,2]
[334602337,1723319431528,-550.0,0.0001,2]
[334602338,1723319431538,-2662.3,0.00010026,2]
[334602339,1723319431547,-1000.0,0.00010064,2]
[334602340,1723319431557,-238.55,0.00010108,2]
[334602341,1723319431566,-250.0,0.00010113,2]
[334602342,1723319431575,-540.45300184,0.00010196,2]
[334602343,1723319431584,-859.01909382,0.00010196,2]
[334602344,1723319431594,-300.0,0.00010244,2]
[334602345,1723319431603,-4996.7703879,0.00010245,2]
[334602346,1723319431612,-5906.02137086,0.00010255,2]
[334602376,1723319437615,-2735.53908701,0.00010255,2]
[334602377,1723319437626,-569.78816292,0.00010255,2]
[334602378,1723319437670,-653.67901261,0.00010255,2]
[334602379,1723319437681,-1302.71367905,0.00010255,2]
[334602380,1723319437693,-316.40153499,0.00010255,2]
[334602381,1723319437731,-34669.85715256,0.00010255,2]
[334602382,1723319437741,-250.84,0.00010372,2]
[334602383,1723319437751,-1494.17896266,0.00010442,2]
[334602384,1723319437760,-303.28,0.00010478,2]
[334602385,1723319437770,-161.45,0.00010526,2]
[334602386,1723319437779,-150.0,0.00010658,2]
[334602387,1723319437788,-73.38700688,0.00010879,2]
[334602388,1723319437840,-76.61299312,0.00010879,2]
[334602389,1723319437850,-4155.39660769,0.0001088,2]
[334602390,1723319437999,-1093.56724221,0.0001088,2]
[334602391,1723319438009,-167.73613215,0.000109,2]
[334602392,1723319438018,-517.5015832,0.000109,2]
[334602393,1723319438028,-2500.0,0.000109,2]
[334602394,1723319438037,-331.48862325,0.000109,2]
[334602395,1723319438046,-5228.99440009,0.000109,2]
[334602396,1723319438056,-487.53,0.0001092,2]
[334602397,1723319438065,-1000.0,0.0001092,2]
[334602398,1723319438074,-9571.35,0.0001092,2]
[334602399,1723319438083,-1744.14,0.0001092,2]
[334602400,1723319438093,-555.0,0.0001099,2]
[334602401,1723319438102,-333.599,0.0001099,2]
[334602402,1723319438112,-307.598,0.0001099,2]
[334602403,1723319438121,-5839.0,0.0001099,2]
[334602404,1723319438130,-5131.0,0.0001099,2]
[334602405,1723319438140,-1672.0,0.0001099,2]
[334602406,1723319438149,-393.002,0.0001099,2]
[334602407,1723319438160,-1075.0,0.0001099,2]
[334602409,1723319438170,-368.1269804,0.00010997,2]
[334602410,1723319438179,-927.3822821,0.00010997,2]
[334602411,1723319438188,-817.9787007,0.00010997,2]
[334602412,1723319438197,-1022.70347586,0.00010997,2]
[334602413,1723319438207,-2953.55232105,0.00010999,2]
[334602414,1723319438216,-500936.79118936,0.00011,2]
[334602416,1723319438227,-70651.05816258,0.00011,2]
[334602437,1723319439591,-1185.20662446,0.00011,2]
[334602438,1723319439963,-1244.6844767,0.00011,2]
[334602461,1723319442587,-277.67072252,0.00011,2]
[334602471,1723319443596,-1895.41666077,0.00011,2]
[334602472,1723319443607,-265.7,0.00011,2]
[334602473,1723319443624,-428.85524841,0.00011,2]
[334602479,1723319445793,-6238.142336,0.00011,2]